bitfinex-derivatives/quotes_ETHF0:USTF0_20240927
["timestamp","ask_amount","ask_price","bid_price","bid_amount"]
[1727465815102,0.37002,2701.9,2701.8,0.37002]
[1727465816613,1.95761,2702.0,2701.9,0.37001]
[1727465817309,1.95761,2702.0,2701.8,0.37002]
[1727465817310,0.37002,2701.9,2701.8,0.37002]
[1727465819603,1.5876,2702.0,2701.9,0.37001]
[1727465819808,3.2078,2702.2,2702.1,0.36999]
[1727465822017,3.2078,2702.2,2702.0,4.57628837]
[1727465822203,3.57778,2702.2,2702.1,0.36999]
[1727465822608,3.57778,2702.2,2702.0,4.20629837]
[1727465823013,0.36999,2702.1,2702.0,4.20629837]
[1727465823205,3.57778,2702.2,2702.0,4.57628837]
[1727465823403,1.5924,2702.1,2702.0,4.57628837]
[1727465824212,1.5924,2702.1,2702.0,5.83922174]
[1727465824716,1.5924,2702.1,2702.0,6.31633843]
[1727465824922,3.2078,2702.2,2702.1,0.36999]
[1727465825214,3.57777,2702.2,2702.1,2.71321256]
[1727465825419,3.57777,2702.2,2702.1,3.08320256]
[1727465825612,3.57777,2702.2,2702.1,1.63292337]
[1727465826212,3.57777,2702.2,2702.1,1.26293337]
[1727465826411,3.57777,2702.2,2702.1,2.71360571]
[1727465827212,3.57777,2702.2,2702.1,2.7137835]
[1727465827511,3.2078,2702.2,2702.1,3.0837735]
[1727465827714,3.57777,2702.2,2702.1,3.0837735]
[1727465827919,3.57777,2702.2,2702.1,3.08369747]
[1727465828618,3.2078,2702.2,2702.1,3.08369747]
[1727465828817,3.2078,2702.2,2702.1,1.63310116]
[1727465830415,3.57777,2702.2,2702.1,1.63310116]
[1727465830920,3.2078,2702.2,2702.1,1.63310116]
[1727465831821,3.2078,2702.2,2702.1,3.0835072]
[1727465832321,3.57777,2702.2,2702.1,2.71331143]
[1727465832519,3.57777,2702.2,2702.1,3.08330143]
[1727465832916,3.57777,2702.2,2702.1,2.71331143]
[1727465833421,4.90777,2702.2,2702.1,2.22992706]
[1727465833816,4.90777,2702.2,2702.1,2.59991706]
[1727465834017,4.90777,2702.2,2702.1,3.08330143]
[1727465834215,3.57777,2702.2,2702.1,3.08330143]
[1727465834610,3.2078,2702.2,2702.1,3.08330143]
[1727465834811,3.57777,2702.2,2702.1,3.08330143]
[1727465835420,3.2078,2702.2,2702.1,3.08330143]
[1727465835928,3.57777,2702.2,2702.1,3.08330143]
[1727465836819,4.50271,2702.2,2702.1,2.22988935]
[1727465837120,4.50271,2702.2,2702.1,2.22990424]
[1727465837323,3.57777,2702.2,2702.1,2.22990424]
[1727465837926,3.57777,2702.2,2702.1,2.71332632]
[1727465838421,3.57777,2702.2,2702.1,3.08331632]
[1727465840220,3.57777,2702.2,2702.1,2.71332632]
[1727465840822,3.57777,2702.2,2702.1,0.36999]
[1727465841919,3.2078,2702.2,2702.1,0.36999]
[1727465842127,3.2078,2702.2,2702.1,3.57279]
[1727465843626,0.345,2702.9,2702.7,0.3699]
[1727465843829,1.6483,2702.9,2702.6,1.33]
[1727465844129,3.54937729,2703.2,2703.1,0.36985]
[1727465844331,3.2612,2703.2,2703.1,0.36985]
[1727465844520,1.6483,2703.2,2703.1,5.39905]
[1727465844723,0.36979,2703.6,2703.4,0.3698]
[1727465845129,0.3698,2703.5,2703.3,0.36982]
[1727465845328,0.36979,2703.6,2703.4,0.3698]
[1727465845522,1.69979,2703.6,2703.5,0.36979]
[1727465845721,1.69979,2703.6,2703.4,0.3698]
[1727465845931,1.33,2703.6,2703.2,4.3803]
[1727465846133,1.69978,2703.6,2703.4,0.3698]
[1727465846433,1.69978,2703.6,2703.5,0.36979]
[1727465846434,0.36978,2703.6,2703.5,0.36979]
[1727465846633,0.36977,2703.7,2703.5,0.36979]
[1727465846827,3.57756,2703.8,2703.6,0.36978]
[1727465847032,3.57756,2703.8,2703.2,5.9403]
[1727465847033,5.15845,2703.9,2703.7,0.36976]
[1727465847430,5.15845,2703.9,2703.8,0.36975]
[1727465847626,5.15845,2703.9,2703.7,0.36976]
[1727465848332,3.1837,2703.9,2703.8,0.36975]
[1727465849235,3.1837,2703.9,2703.7,0.36976]
[1727465849535,3.55344,2703.9,2703.7,0.36976]
[1727465850537,3.1837,2703.9,2703.7,0.36976]
[1727465850831,3.55344,2703.9,2703.7,0.36976]
[1727465852133,3.1837,2703.9,2703.4,2.89]
[1727465852433,3.1837,2703.9,2703.7,0.36976]
[1727465852434,3.55344,2703.9,2703.7,0.36976]
[1727465853530,3.1837,2703.9,2703.8,0.36975]
[1727465853832,3.55344,2703.9,2703.8,0.36975]
[1727465854829,3.55344,2703.9,2703.4,2.89]
[1727465854830,0.36976,2703.8,2703.4,2.89]
[1727465855530,3.55345,2703.9,2703.7,0.36976]
[1727465855836,3.55345,2703.9,2703.4,2.89]
[1727465856036,3.1837,2703.9,2703.7,0.36976]
[1727465856241,3.55345,2703.9,2703.8,0.36975]
[1727465856631,0.36976,2703.8,2703.7,0.36976]
[1727465856831,3.55345,2703.9,2703.8,0.36975]
[1727465859228,3.1837,2703.9,2703.4,0.92451]
[1727465859633,3.55345,2703.9,2703.4,0.92451]
[1727465859840,3.55345,2703.9,2703.8,0.36975]
[1727465860341,0.36976,2703.8,2703.7,0.36976]
[1727465860534,3.55344,2703.9,2703.8,0.36975]
[1727465862142,3.55344,2703.9,2703.7,0.36976]
[1727465862143,0.36976,2703.8,2703.7,0.36976]
[1727465863838,7.31586,2703.9,2703.2,7.18269]
[1727465864035,1.6254,2703.7,2703.4,0.3698]
[1727465864242,0.3698,2703.5,2703.4,0.3698]
[1727465864436,0.3698,2703.5,2703.3,0.36981]
[1727465864636,1.91291,2703.4,2703.3,0.36981]
[1727465865040,1.5431,2703.4,2703.2,3.42012]
[1727465865341,0.92456,2703.3,2702.9,1.5327]
[1727465865544,0.36986,2703.1,2702.9,1.90257]
[1727465865931,0.36986,2703.1,2702.8,3.2078]
[1727465865932,1.6501,2703.0,2702.8,3.57768]
[1727465866135,2.01997,2703.0,2702.8,3.57768]
[1727465866847,2.01997,2703.0,2702.8,3.2078]
[1727465867341,2.01997,2703.0,2702.8,3.57768]
[1727465867543,1.6501,2703.0,2702.9,0.36988]
[1727465867842,2.01996,2703.0,2702.8,3.57768]
[1727465868050,0.36988,2702.9,2702.8,3.2078]
[1727465868635,2.01997,2703.0,2702.8,3.57768]
[1727465868831,5.46477,2703.0,2702.5,1.90262]
[1727465869034,8.67257,2703.0,2702.5,1.90262]
[1727465869249,0.3699,2702.8,2702.5,1.90262]
[1727465869555,1.5666,2702.7,2702.5,1.90262]
[1727465869941,1.5666,2702.7,2702.6,0.36992]
[1727465870445,1.5666,2702.7,2702.5,1.90262]
[1727465870946,1.5666,2702.7,2702.6,0.36992]
[1727465872348,1.6501,2703.0,2702.9,0.36988]
[1727465872550,3.2865,2703.0,2702.9,0.36988]
[1727465876848,3.2865,2703.0,2702.8,0.36988]
[1727465876849,3.65637,2703.0,2702.8,0.36988]
[1727465877046,3.2865,2703.0,2702.6,3.2078]
[1727465877347,0.3699,2702.7,2702.6,3.2078]
[1727465877848,0.3699,2702.7,2702.3,3.0247]
[1727465877849,0.36994,2702.5,2702.3,3.39465]
[1727465878239,3.1152,2702.6,2702.3,3.0247]
[1727465878443,3.1152,2702.6,2702.5,0.36993]
[1727465880353,3.1152,2702.6,2702.3,3.0247]
[1727465880671,3.48512,2702.6,2702.4,0.36994]
[1727465883348,3.1152,2702.6,2702.3,3.0247]
[1727465883657,3.1152,2702.6,2701.9,4.77589861]
[1727465883851,0.36993,2702.5,2702.3,0.36995]
[1727465884650,0.36993,2702.5,2702.4,0.36994]
[1727465884849,0.36993,2702.5,2702.3,0.36994]
[1727465885254,3.48513,2702.6,2702.4,0.36994]
[1727465885863,0.36994,2702.5,2702.3,0.36995]
[1727465886554,0.36994,2702.5,2702.4,0.36994]
[1727465886762,3.48513,2702.6,2702.4,0.36994]
[1727465888363,4.81513,2702.6,2702.4,0.36994]
[1727465890155,0.36993,2702.5,2702.4,0.36994]
[1727465891059,4.81512,2702.6,2702.5,0.36993]
[1727465891258,6.44692,2702.6,2702.5,0.36993]
[1727465891658,0.36993,2702.5,2702.4,0.36993]
[1727465891862,6.077,2702.6,2702.1,2.25497]
[1727465892162,6.44693,2702.6,2702.5,0.36993]
[1727465892559,0.36993,2702.5,2702.4,0.36994]
[1727465892764,6.44693,2702.6,2702.4,0.36994]
[1727465892963,6.44693,2702.6,2702.5,0.36993]
[1727465893162,10.14693,2702.6,2702.5,0.36993]
[1727465893357,0.36994,2702.5,2702.4,0.36994]
[1727465893558,6.44693,2702.6,2702.5,0.36993]
[1727465893753,6.077,2702.6,2702.5,0.36993]
[1727465894160,4.747,2702.6,2702.5,0.36993]
[1727465894461,1.33,2702.9,2702.8,0.36989]
[1727465894663,1.5838,2702.9,2702.8,0.36989]
[1727465894957,1.95368,2702.9,2702.8,0.36989]
[1727465895271,1.5838,2702.9,2702.8,0.36989]
[1727465896172,1.95368,2702.9,2702.8,0.36989]
[1727465896468,1.5838,2702.9,2702.8,0.36989]
[1727465897375,1.95368,2702.9,2702.8,0.36989]
[1727465897561,1.5838,2702.9,2702.8,0.36989]
[1727465899074,3.64686,2703.1,2702.9,0.36986]
[1727465899267,0.36986,2703.0,2702.9,0.36986]
[1727465900663,5.16295,2703.1,2703.0,0.36986]
[1727465900866,0.36984,2703.2,2703.1,0.36985]
[1727465901775,4.8029,2703.3,2703.2,0.36983]
[1727465901974,3.177,2703.5,2703.4,0.36981]
[1727465902667,3.2078,2703.6,2703.5,0.36979]
[1727465904059,3.2078,2703.9,2703.8,0.36975]
[1727465904567,3.57754,2703.9,2703.8,0.36975]
[1727465905275,0.36975,2703.8,2703.7,0.36976]
[1727465913278,0.36978,2703.7,2703.6,0.36978]
[1727465913585,0.36976,2703.8,2703.7,0.36976]
[1727465914389,0.36977,2703.7,2703.6,0.36977]
[1727465915477,0.36976,2703.8,2703.7,0.36976]
[1727465917188,0.36977,2703.7,2703.6,0.36977]
[1727465917492,0.36976,2703.8,2703.7,0.36976]
[1727465919102,0.36978,2703.7,2703.6,0.36977]
[1727465919297,0.36977,2703.7,2703.6,0.36977]
[1727465920096,0.92436,2703.9,2703.6,0.36977]
[1727465920295,0.36977,2703.7,2703.6,0.36977]
[1727465920698,0.92436,2703.9,2703.3,9.64052861]
[1727465920997,0.92436,2703.9,2703.6,0.36978]
[1727465920998,0.36977,2703.7,2703.6,0.36978]
[1727465921301,0.36976,2703.8,2703.6,0.36978]
[1727465921692,0.36968,2704.4,2704.0,0.92432]
[1727465921898,1.558,2704.3,2704.2,0.3697]
[1727465922193,1.558,2704.3,2704.1,1.5276]
[1727465922194,1.5809,2704.4,2704.3,0.36968]
[1727465922388,3.2078,2704.7,2704.5,0.36966]
[1727465922389,1.558,2704.6,2704.5,0.36966]
[1727465922596,3.57744,2704.7,2704.6,0.36964]
[1727465923902,0.36966,2704.6,2704.5,0.36965]
[1727465924802,0.36966,2704.5,2704.4,0.36967]
[1727465925409,0.36965,2704.6,2704.5,0.36965]
[1727465925999,0.36966,2704.5,2704.4,0.36966]
[1727465927305,0.92412,2704.6,2704.2,1.6151]
[1727465927612,0.92412,2704.6,2704.1,1.5276]
[1727465927613,0.3697,2704.2,2704.1,1.5276]
[1727465927902,4.132,2704.4,2704.3,0.36968]
[1727465927903,3.2078,2704.4,2704.3,0.36968]
[1727465928104,0.36966,2704.5,2704.4,0.36966]
[1727465928307,6.0978,2704.7,2704.5,0.36965]
[1727465928308,0.36965,2704.6,2704.5,0.36965]
[1727465928504,3.2078,2704.7,2704.6,0.36964]
[1727465928713,0.92393,2705.2,2704.5,0.92414]
[1727465928911,0.3696,2705.0,2704.8,0.36961]
[1727465929103,0.92394,2705.1,2704.8,0.36961]
[1727465929104,0.3696,2704.9,2704.8,0.36961]
[1727465930310,0.3696,2705.0,2704.8,0.36961]
[1727465930515,0.36958,2705.1,2704.7,3.2078]
[1727465930711,0.36958,2705.1,2704.6,6.99831]
[1727465931102,3.2078,2705.3,2704.7,7.82867]
[1727465931310,3.1538,2705.8,2705.2,2.89]
[1727465931511,3.1538,2705.8,2705.6,0.3695]
[1727465931512,0.36948,2705.8,2705.6,0.3695]
[1727465931706,0.36948,2705.8,2705.5,0.36951]
[1727465932012,4.13149,2705.9,2705.4,0.36953]
[1727465932311,4.13149,2705.9,2705.3,3.2271]
[1727465932312,0.36948,2705.8,2705.3,6.4349]
[1727465932512,0.36949,2705.7,2705.3,6.4349]
[1727465933507,0.3695,2705.7,2705.3,6.4349]
[1727465933817,0.3695,2705.7,2705.5,0.36951]
[1727465935617,0.3695,2705.7,2705.6,0.36951]
[1727465935815,0.3695,2705.7,2705.5,0.36951]
[1727465936710,3.2078,2705.9,2705.5,0.36951]
[1727465937015,0.36951,2705.6,2705.5,0.36952]
[1727465937408,4.13149,2705.9,2705.5,0.36952]
[1727465937601,0.3695,2705.7,2705.5,0.36952]
[1727465938616,0.3695,2705.7,2705.3,3.2271]
[1727465938808,0.3695,2705.7,2705.5,0.36952]
[1727465939317,0.36951,2705.6,2705.4,0.36952]
[1727465939619,0.36951,2705.6,2705.5,0.36952]
[1727465940117,0.36951,2705.6,2705.4,0.36953]
[1727465941123,0.3695,2705.7,2705.5,0.36951]
[1727465941619,0.36951,2705.6,2705.5,0.36951]
[1727465941812,1.86681,2705.6,2705.5,0.36951]
[1727465942313,0.36953,2705.4,2705.3,3.2271]
[1727465942522,3.696,2705.4,2704.7,0.086]
[1727465942711,0.92394,2705.1,2704.7,1.5358]
[1727465942914,1.6376,2705.0,2704.7,1.5358]
[1727465943114,0.36962,2704.8,2704.7,1.5358]
[1727465943411,0.36966,2704.5,2704.3,0.36968]
[1727465943607,0.36968,2704.4,2704.2,3.5775]
[1727465943810,2.40887706,2706.2,2705.2,15.6712]
[1727465944114,2.89,2706.5,2705.9,3.2078]
[1727465944321,1.5476,2706.3,2705.9,6.0978]
[1727465944716,3.0449,2706.3,2705.9,6.46726]
[1727465944916,3.0449,2706.3,2705.9,6.0978]
[1727465945116,3.2078,2706.4,2706.2,0.36942]
[1727465946015,3.2078,2706.4,2706.0,3.1392]
[1727465946631,3.2078,2706.4,2706.2,0.36941]
[1727465946817,3.2078,2706.4,2706.0,3.1392]
[1727465947013,3.2078,2706.4,2706.2,0.36941]
[1727465947724,3.2078,2706.4,2706.3,0.36941]
[1727465949827,4.2168,2707.9,2706.6,0.92342]
[1727465950026,1.6129,2707.4,2707.3,0.36927]
[1727465950221,5.3065,2707.4,2707.3,3.57707]
[1727465950527,1.6129,2707.4,2707.3,3.57707]
[1727465951628,3.47231,2707.8,2707.4,0.36926]
[1727465951823,6.7967,2707.8,2707.3,3.57707]
[1727465952030,0.36923,2707.7,2707.3,3.2078]
[1727465952333,0.36923,2707.7,2707.3,3.57706]
[1727465952628,4.06283,2707.7,2707.3,3.57706]
[1727465952928,0.36923,2707.7,2707.4,0.36926]
[1727465953126,3.47231,2707.8,2707.3,3.2078]
[1727465953335,3.47231,2707.8,2707.4,3.25925]
[1727465953727,3.47231,2707.8,2707.4,2.89]
[1727465953728,3.1031,2707.8,2707.4,2.89]
[1727465953923,0.36923,2707.7,2707.4,3.25926]
[1727465954131,0.36926,2707.5,2707.3,3.2078]
[1727465954938,0.36926,2707.4,2707.3,3.2078]
[1727465956438,4.06286,2707.4,2707.3,3.2078]
[1727465957938,0.36926,2707.4,2707.3,3.2078]
[1727465958126,0.3693,2707.1,2707.0,3.2078]
[1727465958634,0.3693,2707.2,2707.0,3.57711]
[1727465959041,0.36929,2707.2,2707.0,3.57711]
[1727465959439,0.3693,2707.1,2707.0,3.57711]
[1727465960230,0.3693,2707.1,2707.0,3.2078]
[1727465961927,1.89958,2707.3,2707.1,0.36929]
[1727465962130,0.36929,2707.2,2707.1,0.36929]
[1727465962330,0.36929,2707.2,2707.1,1.6386]
[1727465962536,0.3693,2707.1,2707.0,3.2078]
[1727465963337,1.29256,2707.1,2707.0,3.2078]
[1727465965645,0.36936,2706.7,2706.3,0.086]
[1727465965829,7.9574,2706.6,2705.9,6.0978]
[1727465966034,4.13133,2706.3,2705.6,6.45]
[1727465966236,0.92357,2706.2,2705.7,0.36949]
[1727465966443,0.36947,2705.9,2705.6,6.8195]
[1727465966635,0.36947,2705.9,2705.6,6.45]
[1727465966836,0.36947,2705.9,2705.6,6.8195]
[1727465967033,0.36946,2706.0,2705.7,0.36949]
[1727465967440,1.5201,2706.1,2705.6,6.45]
[1727465967643,0.36946,2706.0,2705.7,0.36949]
[1727465967939,0.36946,2706.0,2705.7,3.25949]
[1727465968133,1.5201,2706.1,2705.7,3.25949]
[1727465968339,0.36946,2706.0,2705.7,3.25949]
[1727465968535,0.36947,2705.9,2705.7,2.89]
[1727465968834,1.88955,2706.1,2705.8,0.36947]
[1727465969041,1.88955,2706.1,2705.9,3.2078]
[1727465969547,0.36945,2706.0,2705.9,3.2078]
[1727465971345,1.88954,2706.1,2705.9,3.57726]
[1727465971547,1.88954,2706.1,2705.9,3.2078]
[1727465972434,0.36945,2706.0,2705.9,3.2078]
[1727465973139,1.88954,2706.1,2705.9,3.2078]
[1727465974345,0.36945,2706.0,2705.9,3.2078]
[1727465975742,0.92351,2706.4,2705.9,3.2078]
[1727465975943,0.36942,2706.3,2706.0,1.6117]
[1727465976248,0.36942,2706.3,2706.1,0.36943]
[1727465976541,0.36942,2706.3,2706.2,1.5281]
[1727465979443,2.46488,2706.5,2706.3,0.3694]
[1727465979444,0.3694,2706.4,2706.3,0.3694]
[1727465979954,0.36941,2706.3,2706.2,1.89752]
[1727465980453,0.36941,2706.3,2706.2,1.5281]
[1727465980650,0.36944,2706.1,2706.0,1.6117]
[1727465981555,1.98104,2706.1,2706.0,1.6117]
[1727465981974,0.36945,2706.0,2705.9,3.2078]
[1727465982260,3.61665,2706.1,2705.9,3.2078]
[1727465982554,3.61665,2706.1,2705.9,3.57726]
[1727465982555,0.36945,2706.0,2705.9,3.57726]
[1727465984351,0.36945,2706.0,2705.9,3.2078]
[1727465984556,0.36945,2706.0,2705.9,3.57727]
[1727465985553,0.36945,2706.0,2705.9,3.2078]
[1727465987957,0.36945,2706.1,2706.0,0.36945]
[1727465988256,0.36945,2706.0,2705.9,3.2078]
[1727465988656,0.36945,2706.1,2705.9,3.2078]
[1727465989058,0.36945,2706.0,2705.9,3.2078]
[1727465989559,0.92357,2706.2,2705.9,3.57726]
[1727465989758,0.36945,2706.1,2705.9,3.57726]
[1727465989954,0.36945,2706.0,2705.9,3.2078]
[1727465990956,1.29309,2706.0,2705.9,3.2078]
[1727465991160,0.36949,2705.7,2705.6,3.2078]
[1727465991458,2.21697,2705.7,2705.6,3.2078]
[1727465991656,2.21697,2705.7,2705.2,1.4984]
[1727465991657,0.36955,2705.3,2705.2,4.7062]
[1727465993754,0.36955,2705.3,2704.9,3.2078]
[1727465993755,2.89,2705.3,2704.9,3.2078]
[1727465993957,1.29357,2705.0,2704.9,3.2078]
[1727465994356,4.99037,2705.0,2704.9,3.2078]
[1727465994765,0.92405,2704.8,2704.3,6.0978]
[1727465994966,0.92405,2704.8,2704.0,1.44131792]
[1727465994967,0.36967,2704.4,2704.1,1.9922]
[1727465995169,0.36967,2704.4,2704.2,3.2078]
[1727465995473,0.36968,2704.3,2704.2,3.2078]
[1727465995669,0.36968,2704.4,2704.2,3.2078]
[1727465995864,3.2723,2704.6,2704.2,6.0978]
[1727465996173,0.36966,2704.5,2704.2,6.46749]
[1727465996374,3.64195,2704.6,2704.3,0.36968]
[1727465996977,3.2723,2704.6,2704.2,6.0978]
[1727465997167,0.36968,2704.4,2704.2,6.0978]
[1727465997365,3.2723,2704.6,2704.2,3.2078]
[1727465997664,0.36968,2704.4,2704.2,3.57749]
[1727465997867,0.36966,2704.5,2704.2,3.57749]
[1727465998565,0.36967,2704.5,2704.2,3.57749]
[1727465998761,0.36967,2704.5,2704.3,0.36968]
[1727465999674,0.36966,2704.5,2704.2,3.57749]
[1727466000073,3.2723,2704.6,2704.2,3.2078]
[1727466000074,1.2939,2704.3,2704.2,3.2078]
[1727466000260,1.2939,2704.3,2703.9,3.2078]
[1727466000261,0.36973,2704.0,2703.9,3.2078]
[1727466000461,0.36976,2703.8,2703.5,1.86729]
[1727466000669,0.36977,2703.7,2703.5,1.4975]
[1727466001069,0.36978,2703.6,2703.5,1.4975]
[1727466001379,7.07667,2703.9,2703.5,1.86729]
[1727466001380,0.36975,2703.8,2703.5,1.86729]
[1727466002270,3.2623,2703.9,2703.5,1.4975]
[1727466002468,0.36978,2703.6,2703.5,1.4975]
[1727466003075,0.36976,2703.8,2703.5,1.86729]
[1727466003465,3.2623,2703.9,2703.5,1.4975]
[1727466003667,3.2623,2703.9,2703.4,5.1583]
[1727466004082,0.36978,2703.7,2703.4,4.7885]
[1727466004277,0.36978,2703.6,2703.4,5.15831]
[1727466004576,0.36977,2703.7,2703.4,5.15831]
[1727466004873,6.1523,2703.9,2703.4,4.7885]
[1727466005075,0.36983,2703.2,2703.1,3.2078]
[1727466005381,2.89,2703.3,2703.1,3.2078]
[1727466005983,6.026,2703.3,2703.1,3.2078]
[1727466006178,3.136,2703.3,2703.1,3.2078]
[1727466006375,0.36983,2703.2,2703.1,3.2078]
[1727466006669,3.50583,2703.3,2703.1,3.2078]
[1727466007074,0.36983,2703.2,2703.1,3.2078]
[1727466007783,0.36986,2703.0,2702.8,3.2078]
[1727466008269,0.36988,2702.9,2702.7,1.6408]
[1727466008473,0.36988,2702.9,2702.6,0.36991]
[1727466008669,0.3699,2702.7,2702.5,3.2078]
[1727466008874,2.89,2703.0,2702.1,0.086]
[1727466008875,0.36994,2702.5,2702.2,1.5841]
[1727466009176,2.89,2702.4,2701.8,1.6398]
[1727466009482,3.57776,2702.3,2701.7,0.37003]
[1727466009679,1.087,2702.2,2701.7,0.37003]
[1727466009875,1.45697,2702.2,2701.6,0.37005]
[1727466010074,1.45697,2702.2,2701.5,4.4741]
[1727466010075,1.087,2702.2,2701.5,4.4741]
[1727466010276,3.977,2702.2,2701.5,1.5841]
[1727466010481,1.87649,2702.1,2701.6,0.37005]
[1727466010682,1.087,2702.0,2701.6,0.37005]
[1727466010983,1.087,2702.0,2701.5,1.95416]
[1727466011185,1.5065,2702.1,2701.7,3.57783]
[1727466011377,1.085,2702.1,2701.8,0.37002]
[1727466011575,1.085,2702.1,2701.7,3.57783]
[1727466011783,1.45496,2702.3,2701.7,3.57783]
[1727466012288,0.36998,2702.2,2701.7,3.57784]
[1727466013086,1.45598,2702.2,2701.7,3.57784]
[1727466013387,0.36999,2702.1,2701.7,3.2078]
[1727466013885,4.34598,2702.2,2701.7,3.57783]
[1727466014789,0.36999,2702.1,2701.7,3.2078]
[1727466015287,0.37001,2702.0,2701.7,3.2078]
[1727466015886,2.89,2702.0,2701.7,3.2078]
[1727466016190,6.0978,2701.8,2701.4,3.2078]
[1727466016390,3.26006,2701.6,2701.4,3.2078]
[1727466016883,3.26006,2701.6,2701.1,3.57792]
[1727466016884,0.37007,2701.5,2701.1,3.57792]
[1727466017982,3.26006,2701.6,2701.2,0.37011]
[1727466018182,4.34606,2701.6,2701.2,0.37011]
[1727466019276,1.45606,2701.6,2701.2,0.37011]
[1727466019483,0.37007,2701.5,2701.1,3.2078]
[1727466019694,0.37007,2701.5,2701.2,0.3701]
[1727466020198,0.37007,2701.5,2701.1,3.57791]
[1727466020493,0.37008,2701.4,2701.1,3.2078]
[1727466020691,4.27708,2701.4,2701.1,3.57791]
[1727466021093,3.907,2701.4,2701.2,0.37011]
[1727466021892,3.907,2701.4,2701.1,3.2078]
[1727466022085,0.3701,2701.3,2701.1,3.2078]
[1727466022797,7.16709,2701.4,2701.1,3.57792]
[1727466023091,10.93001,2701.4,2700.8,1.5944]
[1727466023392,8.0381,2701.3,2700.9,0.37014]
[1727466023788,0.37011,2701.2,2700.9,0.37014]
[1727466023982,0.37014,2701.0,2700.8,1.96456]
[1727466024382,8.0381,2701.3,2700.9,0.37014]
[1727466024803,0.37011,2701.2,2700.9,0.37014]
[1727466025090,0.37013,2701.1,2700.9,0.37014]
[1727466025296,0.37012,2701.2,2701.0,0.37014]
[1727466026400,0.37012,2701.2,2700.9,0.37014]
[1727466026596,4.8303,2701.3,2700.9,0.37014]
[1727466026597,0.37012,2701.1,2700.9,0.37014]
[1727466026787,0.37013,2701.1,2700.8,1.5944]
[1727466026994,0.37013,2701.1,2700.9,0.37015]
[1727466027196,0.37011,2701.2,2701.0,0.37014]
[1727466028795,0.37012,2701.1,2701.0,0.37014]
[1727466028995,8.0381,2701.3,2700.8,1.5944]
[1727466028996,8.96336,2701.3,2700.8,1.5944]
[1727466029196,0.37012,2701.2,2701.0,0.37013]
[1727466030005,0.37012,2701.1,2701.0,0.37013]
[1727466032406,2.89,2701.2,2700.9,0.37014]
[1727466032594,0.37012,2701.1,2700.9,0.37014]
[1727466032799,0.37014,2701.0,2700.9,0.37014]
[1727466033000,0.37013,2701.1,2700.9,0.37014]
[1727466033201,2.89,2701.2,2700.8,1.5944]
[1727466033202,0.37014,2701.0,2700.8,1.5944]
[1727466033507,0.37013,2701.1,2700.9,0.37014]
[1727466033710,0.37013,2701.1,2700.8,1.5944]
[1727466033711,0.37014,2701.0,2700.8,1.5944]
[1727466033909,0.37014,2701.0,2700.8,1.96455]
[1727466034206,0.37014,2701.0,2700.9,0.37015]
[1727466034706,0.37013,2701.1,2701.0,0.37013]
[1727466037403,0.37013,2701.1,2700.9,0.37014]
[1727466037702,0.37013,2701.1,2700.9,0.37015]
[1727466037703,0.37012,2701.1,2700.9,0.37015]
[1727466037912,0.37012,2701.1,2700.8,5.17235]
[1727466038095,0.37014,2701.0,2700.8,4.8022]
[1727466038298,0.37015,2700.9,2700.8,3.2078]
[1727466038502,0.92542,2700.8,2700.0,3.2078]
[1727466038811,0.92566,2700.1,2699.7,3.2938]
[1727466039013,2.89,2699.9,2699.7,0.3703]
[1727466039807,2.89,2699.9,2699.5,1.5745]
[1727466040011,0.3703,2699.8,2699.5,1.5745]
[1727466040306,2.89,2699.9,2699.5,1.5745]
[1727466040307,0.37033,2699.6,2699.5,1.5745]
[1727466040514,0.37033,2699.6,2699.4,4.7111]
[1727466040802,3.26034,2699.5,2699.4,3.2078]
[1727466041002,7.16734,2699.5,2699.4,3.2078]
[1727466041394,7.16734,2699.5,2699.2,0.2027769]
[1727466041395,0.37036,2699.4,2699.2,0.2027769]
[1727466041608,0.37036,2699.4,2699.0,6.656]
[1727466041801,0.37038,2699.3,2699.0,6.2856]
[1727466042015,0.37036,2699.4,2699.0,6.2856]
[1727466042308,2.89,2699.2,2699.0,6.2856]
[1727466043000,2.89,2699.2,2699.0,6.65601]
[1727466043198,3.907,2699.5,2699.0,15.1756]
[1727466043512,3.907,2699.5,2699.4,0.37036]
[1727466043898,3.907,2699.5,2699.4,4.07516]
[1727466044805,3.907,2699.5,2699.3,3.2078]
[1727466044999,2.89,2699.5,2699.0,3.2078]
[1727466045302,0.37039,2699.2,2699.0,0.20289756]
[1727466045507,0.3704,2699.1,2698.8,0.37043]
[1727466045712,4.2774,2699.1,2698.8,0.37043]
[1727466045906,0.37041,2699.0,2698.7,6.3044]
[1727466046211,4.2774,2699.1,2698.8,0.37043]
[1727466046505,0.37041,2699.0,2698.7,6.67484]
[1727466046906,4.2774,2699.1,2698.8,0.37044]
[1727466047302,3.907,2699.1,2699.0,3.57821]
[1727466047503,3.907,2699.1,2699.0,7.28301]
[1727466047714,3.907,2699.1,2699.0,17.09904]
[1727466047899,3.907,2699.1,2699.0,16.17301]
[1727466048099,3.907,2699.1,2699.0,3.2078]
[1727466049115,3.907,2699.1,2699.0,3.57821]
[1727466049608,3.907,2699.1,2699.0,7.28301]
[1727466049812,3.907,2699.1,2699.0,16.17301]
[1727466050207,3.907,2699.6,2699.0,15.8026]